Cogmind - Beta 13 @@@ ROGUE MODE // 2024.03.10 @ 03:18:37 Player: rCartos Result: Destroyed by G-34 Mercenary with Small Laser Performance ------------- Evolutions (1) 500 Regions Visited (3) 600 Robots Destroyed (14) 70 Value Destroyed (349) 349 Prototype IDs (0) 0 Alien Tech Used (0) 0 Bonus (0) 0 TOTAL SCORE: 1519 Bonus ------- None Cogmind --------- Core Integrity 0/400 Matter 13/300 Energy 85/100 System Corruption 0% Temperature Cool (45) Movement Core (150) Ox2 Location -9/Storage Parts ------- > --- POWER (1) -------- (None) > --- PROPULSION (2) --- (None) > --- UTILITY (4) ------ Small Storage Unit Machine Analyzer > --- WEAPON (2) ------- Medium Laser > --- INVENTORY (8) ---- Seismic Detector EM Pulse Gun Medium Laser Mini Grenade Launcher Peak State ------------ > --- POWER ------------ Ion Engine > --- PROPULSION ------- Aluminum Leg Aluminum Leg > --- UTILITY ---------- Small Storage Unit Small Storage Unit Machine Analyzer Tractor Beam > --- WEAPON ----------- Mini Grenade Launcher Mini Grenade Launcher > --- INVENTORY -------- Ion Engine Seismic Detector EM Pulse Gun Medium Laser Medium Laser Mini Grenade Launcher [Rating: 13] Favorites ----------- Power Ion Engine Engine Ion Engine Propulsion Aluminum Leg Leg Aluminum Leg Utility Small Storage Unit Device Tractor Beam Storage Small Storage Unit Processor Machine Analyzer Weapon Mini Grenade Launcher Energy Gun Medium Laser Launcher Mini Grenade Launcher Build | -11 -10 -9 -9 ------- Run | Yrd Mat Mat Sto Slots Evolved 2 | . . 2 . Power . | . . . . Propulsion . | . . . . Utility 2 | . . 2 . Weapon . | . . . . Parts Attached 20 | 7 5 2 6 Power 3 | 1 . . 2 Engine 3 | 1 . . 2 Core . | . . . . Reactor . | . . . . Propulsion 5 | 2 . . 3 Treads . | . . . . Leg 5 | 2 . . 3 Wheel . | . . . . Hover . | . . . . Flight . | . . . . Utility 4 | 2 . 2 . Device 1 | . . 1 . Storage 2 | 2 . . . Processor 1 | . . 1 . Hackware . | . . . . Protection . | . . . . Artifact . | . . . . Weapon 8 | 2 5 . 1 Energy Gun 3 | 2 . . 1 Energy Cannon . | . . . . Ballistic Gun . | . . . . Ballistic Cannon . | . . . . Launcher 5 | . 5 . . Special Weapon . | . . . . Impact Weapon . | . . . . Slashing Weapon . | . . . . Piercing Weapon . | . . . . Special Melee Weapon . | . . . . Unidentified Prototypes . | . . . . Parts Lost 9 | . . . 9 Power 2 | . . . 2 Propulsion 3 | . . . 3 Utility 2 | . . . 2 Weapon 2 | . . . 2 Highest Loss Streak 9 | . . . 9 To Critical Strikes . | . . . . Average Slot Usage (%) 91 | . 98 98 76 Engine 10 | . 14 11 6 Leg 21 | . 28 22 11 Device 4 | . . 9 6 Storage 24 | . 28 22 22 Processor 5 | . . 11 11 Energy Gun 3 | . 7 . . Launcher 19 | . 18 22 18 Naked Turns . | . . . . Heaviest Build 21 | 19 21 18 18 Greatest Support 20 | 20 20 20 20 Greatest Overweight (x) 5 | 4 1 . 5 Average Overweight (x) . | . . . 1 Largest Inventory Capacity 8 | 8 8 8 8 Average Capacity 7 | 7 8 8 8 Most Carried 8 | 5 8 7 7 Average Carried 5 | 3 7 6 5 Final Capacity 8 | 8 8 8 8 Final Carried 8 | 5 8 6 4 Class Distribution -------------------- 100% | Mutant Dominant Class ---------------- Mutant | -10/Materials Mutant | -9/Materials Mutant | -9/Storage Resources | -11 -10 -9 -9 ----------- Run | Yrd Mat Mat Sto Matter Collected 396 | 266 130 . . Remotely . | . . . . Salvage Created 212 | 137 20 16 39 Parts 23 | 15 2 2 4 Haulers Intercepted . | . . . . Recyclers Shooed . | . . . . Parts Field Recycled . | . . . . Retrieved Matter . | . . . . Parts Self-Destructed . | . . . . Prevented . | . . . . Kills | -11 -10 -9 -9 ------- Run | Yrd Mat Mat Sto Combat Hostiles Destroyed 6 | . 1 1 4 AOE 6 | . 1 1 4 Classes Destroyed 7 | 3 2 2 . Worker 2 | 1 . 1 . Tunneler 3 | 3 . . . Recycler 1 | 1 . . . Mechanic 1 | . 1 . . Operator 1 | . . 1 . Grunt 5 | . 1 . 4 Sentry 1 | . . 1 . Best Kill Streak 4 | 2 1 3 4 Combat Bots Only 4 | . 1 1 4 Max Kills in Single Turn 1 | 1 1 1 1 Gunslinging . | . . . . Exploded 1 | . 1 1 1 Melee . | . . . . Uniques/NPCs Destroyed . | . . . . Combat | -11 -10 -9 -9 -------- Run | Yrd Mat Mat Sto Hostile Shots Fired 117 | . 4 8 105 Missed 34 | . 1 2 31 Damage Taken 1266 | 38 37 154 1037 Core 438 | 38 . 30 370 Absorbed by Shields . | . . . . Regen/Repaired (Parts) 33 | . . . 33 Core Remaining (%) 84 | 84 84 . . Volleys Fired 37 | 11 8 5 13 Largest 2 | 2 2 2 2 Hottest 90 | 90 90 60 60 Shots Fired 69 | 22 16 10 21 Gun 35 | 22 8 . 5 Cannon . | . . . . Launcher 34 | . 8 10 16 Special . | . . . . Kinetic . | . . . . Thermal 20 | 11 4 . 5 Explosive 34 | . 8 10 16 Electromagnetic 15 | 11 4 . . Robot Hit Streak 5 | 5 2 4 5 Robot Miss Streak 3 | 3 2 2 2 Penetration Max . | . . . . Secondary Targets . | . . . . Shots Hit Robots 37 | 13 6 7 11 Core Hits 25 | 5 4 6 10 Critical Kills . | . . . . Critical Parts Destroyed . | . . . . Critical Strikes 6 | 2 2 . 2 Burn 6 | 2 2 . 2 Melee Attacks . | . . . . Impact . | . . . . Slashing . | . . . . Piercing . | . . . . Sneak Attacks . | . . . . Combat Hostiles . | . . . . Follow-up Attacks . | . . . . Damage Inflicted 1421 | 239 286 281 615 Guns 274 | 166 59 . 49 Cannons . | . . . . Explosions 1141 | 68 227 281 565 Melee . | . . . . Ramming 6 | 5 . . 1 Kinetic . | . . . . Thermal 218 | 144 25 . 49 Explosive 1073 | . 227 281 565 Electromagnetic 124 | 90 34 . . Impact . | . . . . Slashing . | . . . . Piercing . | . . . . Highest Corruption . | . . . . Average Corruption . | . . . . Corruption Purged . | . . . . Corruption Blocked . | . . . . Overload Shots . | . . . . Overflow Damage 14 | . . . 14 Projectiles . | . . . . Explosions 14 | . . . 14 Melee . | . . . . Knockbacks . | . . . . Impact . | . . . . Kinetic . | . . . . Secondary . | . . . . Self-Inflicted Damage 155 | 38 2 67 48 Shots 7 | 1 1 1 4 Rammed 3 | 1 . . 2 Targets Rammed 4 | 1 1 . 2 Kicked 1 | . 1 . . Crushed . | . . . . Highest Temperature 102 | 102 60 6 33 Average Temperature 26 | 36 27 4 11 Received Heat Transfer 576 | . 18 36 522 Siege Activations . | . . . . Robots Corrupted . | . . . . Combat Hostiles . | . . . . Parts Fried . | . . . . Impact Corruptions . | . . . . Robots Melted . | . . . . Combat Hostiles . | . . . . Parts Melted . | . . . . Heat Transferred 938 | 420 222 . 296 Parts Sabotaged . | . . . . Parts Stolen . | . . . . Parts Stripped . | . . . . Power Chain Reactions 2 | 2 . . . Alert | -11 -10 -9 -9 ------- Run | Yrd Mat Mat Sto Peak Influence 281 | 25 106 223 281 Initial 93 | . 16 44 93 Average 91 | 13 60 154 192 Maximum Alert Level 1 | . . 1 1 Low Security (%) 78 | 100 100 51 39 Level 1 21 | . . 48 60 Level 2 . | . . . . Level 3 . | . . . . Level 4 . | . . . . Level 5 . | . . . . High Security . | . . . . Max Security . | . . . . Squads Dispatched 2 | . 1 . 1 Investigation 1 | . . . 1 Extermination . | . . . . Reinforcement 1 | . 1 . . Assault . | . . . . Garrison . | . . . . Intercept . | . . . . Searches Triggered . | . . . . Construction Impeded . | . . . . Haulers Reinforced . | . . . . Active Scanning Responses . | . . . . Cargo Convoy Interrupts . | . . . . Stealth | -11 -10 -9 -9 --------- Run | Yrd Mat Mat Sto Distress Signals 2 | . . 1 1 Communications Jammed . | . . . . Distress Signals . | . . . . Times Spotted 14 | . 4 2 8 Peak Tracking Total 5 | . 1 2 5 Tactical Retreats . | . . . . Traps | -11 -10 -9 -9 ------- Run | Yrd Mat Mat Sto Traps Triggered . | . . . . Indirectly . | . . . . Trap Hack Attempts . | . . . . Triggered . | . . . . Disarmed . | . . . . Reprogrammed . | . . . . Reused . | . . . . Traps Extracted . | . . . . Installed . | . . . . Triggered . | . . . . Machines | -11 -10 -9 -9 ---------- Run | Yrd Mat Mat Sto Machines Disabled 5 | . . 5 . Max in Single Turn 2 | . . 2 . Machines Repaired . | . . . . Machines Dismantled . | . . . . Machines Sabotaged . | . . . . Overloaded Fab Kills . | . . . . Hacking | -11 -10 -9 -9 --------- Run | Yrd Mat Mat Sto Machines Accessed 2 | . 1 . 1 Terminals 1 | . 1 . . Fabricators . | . . . . Repair Stations 1 | . . . 1 Recycling Units . | . . . . Scanalyzers . | . . . . Garrison Access . | . . . . Total Hacks 8 | . 3 . 5 Successful 5 | . 1 . 4 Failed 3 | . 2 . 1 Catastrophic . | . . . . Database Lockouts . | . . . . Manual 2 | . 2 . . Terminals 3 | . 3 . . Fabricators . | . . . . Repair Stations 5 | . . . 5 Recycling Units . | . . . . Scanalyzers . | . . . . Garrison Access . | . . . . Terminal Hacks 1 | . 1 . . Alert Level 1 | . 1 . . Fabricator Hacks . | . . . . Repair Station Hacks 4 | . . . 4 Scan Component 2 | . . . 2 Repair 2 | . . . 2 Recycling Unit Hacks . | . . . . Scanalyzer . | . . . . Garrison Access Hacks . | . . . . Unauthorized Hacks . | . . . . Terminals . | . . . . Fabricators . | . . . . Repair Stations . | . . . . Recycling Units . | . . . . Scanalyzers . | . . . . Garrison Access . | . . . . Data Cores Recovered . | . . . . Used . | . . . . Hacking Detections 2 | . 1 . 1 Full Trace Events 1 | . . . 1 Feedback Events . | . . . . Feedback Blocked . | . . . . Robot Schematics Acquired . | . . . . Robots Built . | . . . . Authchips . | . . . . Time . | . . . . Total Robot Build Rating . | . . . . Part Schematics Acquired . | . . . . Parts Built . | . . . . Authchips . | . . . . Time . | . . . . Total Part Build Rating . | . . . . Parts Repaired 2 | . . . 2 Time 52 | . . . 52 Parts Recycled . | . . . . Recycled Matter . | . . . . Retrieved Matter . | . . . . Retrieved Components . | . . . . Parts Scanalyzed . | . . . . Part Schematics Acquired . | . . . . Parts Damaged . | . . . . Bothacking | -11 -10 -9 -9 ------------ Run | Yrd Mat Mat Sto Used RIF Installer . | . . . . Robots Hacked . | . . . . Non-combat . | . . . . Combat . | . . . . Robot Hacks Applied . | . . . . Relay Couplers Released . | . . . . Fabnet Peak Effective % . | . . . . Robots Rewired . | . . . . Allies Hacked . | . . . . Hacks Repelled . | . . . . Allies | -11 -10 -9 -9 -------- Run | Yrd Mat Mat Sto Total Allies . | . . . . Largest Group . | . . . . Highest-Rated Group . | . . . . Highest-Rated Ally . | . . . . Total Orders . | . . . . Ally Attacks . | . . . . Total Damage . | . . . . Kills . | . . . . Allies Corrupted . | . . . . Allies Melted . | . . . . Intel | -11 -10 -9 -9 ------- Run | Yrd Mat Mat Sto Robot Analysis Total . | . . . . Derelict Logs Recovered . | . . . . Drone Launches . | . . . . Drone Recoveries . | . . . . Exploration | -11 -10 -9 -9 ------------- Run | Yrd Mat Mat Sto Turns Passed 686 | 197 231 89 169 Spaces Moved 391 | 115 147 61 68 Core 65 | 41 . . 24 Treads . | . . . . Legs 326 | 74 147 61 44 Wheels . | . . . . Hover . | . . . . Flight . | . . . . Fastest Speed 50 | 50 120 120 120 Average Speed 130 | 122 129 120 156 Slowest Speed 300 | 250 190 120 300 Overloaded Moves . | . . . . Propulsion Burnouts . | . . . . Robots Hopped . | . . . . Cave-ins Triggered . | . . . . Exploration Rate (%) 16 | 5 25 12 23 Regions Visited 3 Branch Regions 1 Pre-discovered Areas . | . . . . Known Exits Taken . | . . . . Unknown Exits Taken 3 | 1 1 1 . Scrap Searched . | . . . . Spaces Dug . | . . . . Terrain Destroyed 207 | 9 48 73 77 Melee . | . . . . Projectile . | . . . . AOE 207 | 9 48 73 77 Terrain Rammed . | . . . . Walls Destroyed . | . . . . Machines Disabled . | . . . . Actions | -11 -10 -9 -9 --------- Run | Yrd Mat Mat Sto Total 496 | 149 173 67 107 Wait 15 | . . . 15 Move 388 | 114 146 60 68 Hop . | . . . . Pick Up 25 | 14 8 . 3 Fast Attach . | . . . . Attach 18 | 7 4 2 5 Detach . | . . . . Swap 2 | . 1 . 1 Drop 7 | 2 5 . . Fire 37 | 11 8 5 13 Melee . | . . . . Ram 3 | 1 . . 2 Kick 1 | . 1 . . Crush . | . . . . Escape Stasis . | . . . . Rewire . | . . . . Trap . | . . . . Miscellaneous . | . . . . Route ------- -11/Scrapyard -10/Materials -9/Materials -9/Storage History --------- Turn | Location | Event 10 | -11/Scrapyard | Discovered new exit (range 16) 198 | -11/Scrapyard | Entered Materials 311 | -10/Materials | Build established: Mutant 404 | -10/Materials | Discovered new exit (range 5) 429 | -10/Materials | Entered another Materials area 429 | -9/Materials | Evolved 2 slots: Utility x2 502 | -9/Materials | Discovered new exit (range 14) 518 | -9/Materials | Entered Storage 526 | -9/Storage | Repaired Aluminum Leg 552 | -9/Storage | Repaired Aluminum Leg 662 | -9/Storage | Core integrity fell below 50% 670 | -9/Storage | Core integrity fell below 20% 687 | -9/Storage | Destroyed by G-34 Mercenary with Small Laser Last Messages --------------- Slammed into G-34 Mercenary. K-01 Serf collects debris. U-05 Engineer lays Concrete. U-05 Engineer builds a Wall. U-05 Engineer lays Concrete. The unstable cave ceiling collapses. Aluminum Leg destroyed. W-16 Scout sends out distress signal. The unstable cave ceiling collapses. Mni. Grenade Launcher destroyed. Critical hit (Burn: +37). >> Machine Analyzer network decryption results: Recycling Unit x2 >> Machine Analyzer network decryption results: Terminal x2 Critical hit (Burn: +37). G-34 Mercenary suffers critical hit (Burn). G-34 Mercenary overheating. Sml. Storage Unit destroyed. G-34 Mercenary overheating. Map ----- +----------------------------------------------------+ | ??"Y"????????????????????????????????????????????? | | ?????????????????????????????????????????????????? | | ??"""????????????????????????????????????????????? | | ??"""????????????????????????????????????????????? | | ??"""????????????????????????????????????????????? | | ?????????????????????????????????????????????????? | | ??"""????????????????????????????????????????????? | | ??"""????????????????????????????????????????????? | | ??"""?????????????????????T??????????????????????? | | ?????????????????????????????????????????????????? | | ??"""????????????????????????????????????????????? | | ??"R?????????????????????????????????????????????? | | ??"""????????????????????????????????????????????? | | ?????????????????????????????????????????????????? | | ??????????????????????????? ???????????????????? | | ??????????????????????????? #??????????????????? | | ??????????????????????????? #??????????????????? | | ??????????????????????????? #??????????????????? | | ??????????????????????????+ #??????????????????? | | ??????????????????????????# #??????????????????? | | ??????????????????????????# ^ #??????????????????? | | ??????????????????????????# #??????????????????? | | ??????????????????????????# #????###???????????? | | ??????????????????????????# #???"T"#???????????? | | ????????????????########### #?? ??????????? | | ????????????????# @g #? ???????????? | | ????????????????# """ """ # g # ????????????? | | ??????????????????""" """g# # """ ?????????????? | | ??????????????????""" """ + " """ ???"""???????? | | ????????????????# # # """ ""??T"???????? | | ????????????????# # #?"""?Y"?"""???????? | | ????????????????# # #?"""?""???????????? | | ????????????????# # #??????????????????? | | ????????????????##"T"###### #??????????????????? | | ?????????????????####?????# #?##???##??????????? | | ????????????????#####?????# #? #? !!#??????????? | | ????????????????#] ]#?????# # " ! #??????????? | | ????????????????#] ]#?????# # !#??????????? | | ????????????????#] ]?###??# + "???????????????? | | ????????????????#] ]## ##?# ##T#???????????????? | | ???????????????##" "## #?# #??????????????????? | | ??????????????##T ### #??????????????????? | | ????????#####?# # # # #??????????????????? | | ???????#"""""### # # ### ########???????????? | | ??????##""T""# ???????? | | ??????# ???????? | | ??????#"""" ???????? | | ???????"""" ###+## # ##########???????? | | ??????#"""" ## ###### #????????????????? | | ??????#"""" # ]]]####????????????????? | +----------------------------------------------------+ Best States ------------- Heat Dissipation 28 Energy Generation 10 Energy Capacity 250 Matter Stores 300 Matter Capacity 300 Sight Range 16 Terrain Scan Density 10 Evasion (%) 55 Item Schematics ----------------- None Robot Schematics ------------------ None Fabricated ------------ Nothing Alien Tech Used ----------------- None Achievements -------------- None Challenges ------------ None Game ------ Seed FlyingStasisWheel Manual? 0 Play Time 00:17:46 Cumulative 7.0 hours Start 2024.03.10 @ 02:57:25 End 2024.03.10 @ 03:18:37 Sessions 1 Manual Loads 0 Difficulty Rogue Special Mode None Game No. 18 Rogue 18 Adventurer 0 Explorer 0 Win Type - Total 0 Types 0/0/0/0/0/0/0/0/0 Lore% 10 Gallery% 13 Achievement% 9 Wizard Run 0 Options --------- Layout 1 ASCII 0 Keyboard 0 Movement Mouse Keybinds 0 Fullscreen 1 Font 16/Terminus Map View 25x20 Zoom Use 100% Tactical HUD 0 Map Filters NONE Filters NONE Steam 1 RUN: e8d8a448-7733-42e3-89d7-f7d3c7ee2a74